lending/lending_fUSD_20251111
["ID","MTS","AMOUNT","RATE_DAILY","PERIOD"]
[393630294,1762867337534,151.0,0.00039956,120]
[393630295,1762867338267,151.0,0.00039956,120]
[393630296,1762867340764,645.1694719,0.00039956,120]
[393630297,1762867341880,176.11544,0.00039956,120]
[393630298,1762867346031,219.11577884,0.00039956,120]
[393630299,1762867348710,177.51,0.00039956,50]
[393630302,1762867358420,245.88471285,0.00039956,120]
[393630303,1762867362268,187.66993798,0.00039956,120]
[393630304,1762867362299,150.0,0.00039956,30]
[393630305,1762867362597,215.8,0.00039956,30]
[393630306,1762867375799,310.15649645,0.00039956,120]
[393630307,1762867393334,180.37391705,0.00039956,120]
[393630308,1762867394233,170.14206759,0.00039956,120]
[393630309,1762867397917,201.57466176,0.00039956,120]
[393630310,1762867406022,272.53336119,0.00039956,120]
[393630311,1762867409516,256.62379447,0.00039956,120]
[393630312,1762867415011,364.19796383,0.00039956,120]
[393630313,1762867432591,159.47974888,0.00039956,120]
[393630314,1762867434823,190.42666299,0.00039956,120]
[393630315,1762867435882,328.31116498,0.00039956,120]
[393630316,1762867443834,182.88403196,0.00039956,120]
[393630317,1762867451954,298.98810944,0.00039956,120]
[393630318,1762867452511,228.7863609,0.00039956,120]
[393630319,1762867461104,292.36304035,0.00039956,120]
[393630320,1762867462027,214.12735256,0.00039956,30]
[393630321,1762867462403,155.92673057,0.00039956,120]
[393630322,1762867463928,171.32945975,0.00039956,60]
[393630323,1762867468829,398.690062,0.00039956,120]
[393630324,1762867471851,239.10151391,0.00039956,120]
[393630325,1762867472888,204.57156803,0.00039956,120]
[393630326,1762867476645,316.04958422,0.00039956,120]
[393630327,1762867487257,159.13652812,0.00039956,120]
[393630328,1762867491225,164.33865353,0.00039956,120]
[393630329,1762867493249,181.84197302,0.00039956,120]
[393630330,1762867494250,183.02845097,0.00039956,120]
[393630331,1762867494678,213.22546405,0.00039956,120]
[393630332,1762867495045,367.0531293,0.00039956,120]
[393630333,1762867496544,243.41920423,0.00039956,120]
[393630334,1762867504849,158.93388875,0.00039956,120]
[393630335,1762867507217,239.11556276,0.00039957,120]
[393630336,1762867508177,215.2723471,0.00039957,120]
[393630341,1762867515238,366.31677455,0.00039957,120]
[393630342,1762867524644,176.19472212,0.00039957,120]
[393630343,1762867527660,176.52703017,0.00039957,120]
[393630344,1762867530187,356.09970755,0.00039957,120]
[393630345,1762867533009,174.02218984,0.00039957,120]
[393630346,1762867536745,267.77242585,0.00039957,120]
[393630347,1762867538296,161.40927422,0.00039957,120]
[393630348,1762867542861,151.75612317,0.00039957,120]
[393630349,1762867547276,191.43960458,0.00039957,120]
[393630350,1762867549130,338.33241856,0.00039957,120]
[393630351,1762867554229,339.45418503,0.00039957,120]
[393630352,1762867556148,177.06897565,0.00039957,120]
[393630353,1762867561521,200.0,0.00039957,30]
[393630354,1762867562656,158.92,0.00013941,2]
[393630355,1762867567228,161.18115152,0.00039957,60]
[393630356,1762867570632,175.40769083,0.00039957,60]
[393630357,1762867586594,150.0,0.00039957,120]
[393630358,1762867590504,151.0,0.00013941,2]
[393630359,1762867590767,151.0,0.00013941,2]
[393630360,1762867592877,151.0,0.00013941,2]
[393630361,1762867593040,151.0,0.00013941,2]
[393630362,1762867594076,233.89005725,0.00013941,2]
[393630363,1762867597669,151.0,0.00013941,2]
[393630364,1762867598524,246.89823067,0.00013941,2]
[393630366,1762867610687,157.66338692,0.00039957,120]
[393630367,1762867625245,151.0,0.00039957,120]
[393630368,1762867625280,300.0,0.00039957,120]
[393630369,1762867625332,200.0,0.00039957,120]
[393630370,1762867625467,160.0,0.00039957,120]
[393630371,1762867625512,500.0,0.00039957,120]
[393630372,1762867625566,600.0,0.00039957,120]
[393630373,1762867625850,151.0,0.00039957,120]
[393630374,1762867625886,524.81126104,0.00039957,120]
[393630375,1762867625926,311.1,0.00039957,120]
[393630376,1762867625962,200.0,0.00039957,120]
[393630377,1762867625998,250.0,0.00039957,120]
[393630378,1762867626071,160.0,0.00039957,120]
[393630379,1762867626212,600.0,0.00039957,120]
[393630380,1762867626253,500.0,0.00039957,120]
[393630381,1762867626538,151.0,0.00039957,120]
[393630382,1762867626575,322.6107,0.00039957,120]
[393630383,1762867626610,250.0,0.00039957,120]
[393630384,1762867626678,160.0,0.00039957,120]
[393630385,1762867626861,600.0,0.00039957,120]
[393630386,1762867626907,500.0,0.00039957,120]
[393630387,1762867627205,334.5472959,0.00039957,120]
[393630388,1762867627243,151.0,0.00039957,120]
[393630389,1762867627285,250.0,0.00039957,120]
[393630390,1762867627328,160.0,0.00039957,120]
[393630391,1762867627523,500.0,0.00039957,120]
[393630392,1762867627755,600.0,0.00039957,120]
[393630393,1762867627812,346.92554585,0.00039957,120]
[393630394,1762867627848,151.0,0.00039957,120]
[393630395,1762867627910,250.0,0.00039957,120]
[393630396,1762867627941,160.0,0.00039957,120]
[393630397,1762867628458,500.0,0.00039957,120]
[393630398,1762867628500,500.0,0.00039957,120]
[393630399,1762867628536,359.76179104,0.00039957,120]
[393630400,1762867628572,151.0,0.00039957,120]
[393630401,1762867628612,250.0,0.00039957,120]
[393630402,1762867628759,160.0,0.00039957,120]
[393630403,1762867628816,500.0,0.00039957,120]
[393630404,1762867629012,500.0,0.00039957,120]
[393630405,1762867629107,151.0,0.00039957,120]
[393630406,1762867629139,373.07297731,0.00039957,120]
[393630407,1762867629194,200.0,0.00039957,120]
[393630408,1762867629232,250.0,0.00039957,120]
[393630409,1762867629433,500.0,0.00039957,120]
[393630410,1762867629470,160.0,0.00039957,120]
[393630411,1762867629627,500.0,0.00039957,120]
[393630412,1762867629724,386.87667747,0.00039957,120]
[393630413,1762867629785,151.0,0.00039957,120]
[393630414,1762867629894,200.0,0.00039957,120]
[393630415,1762867630053,500.0,0.00039957,120]
[393630416,1762867630305,500.0,0.00039957,120]
[393630417,1762867630410,250.0,0.00039957,120]
[393630418,1762867630442,151.0,0.00039957,120]
[393630419,1762867630649,500.0,0.00039957,120]
[393630420,1762867630820,401.19111454,0.00039957,120]
[393630421,1762867630925,500.0,0.00039957,120]
[393630422,1762867631049,250.0,0.00039957,120]
[393630423,1762867631080,414.0,0.00039957,120]
[393630424,1762867631267,151.0,0.00039957,120]
[393630425,1762867631305,500.0,0.00039957,120]
[393630426,1762867631462,416.03518578,0.00039957,120]
[393630427,1762867631547,500.0,0.00039957,120]
[393630428,1762867631683,429.318,0.00039957,120]
[393630429,1762867631829,250.0,0.00039957,120]
[393630430,1762867631891,151.0,0.00039957,120]
[393630431,1762867631927,500.0,0.00039957,120]
[393630432,1762867632111,431.42848765,0.00039957,120]
[393630433,1762867632271,500.0,0.00039957,120]
[393630434,1762867632332,445.202766,0.00039957,120]
[393630435,1762867632503,250.0,0.00039957,120]
[393630436,1762867632540,151.0,0.00039957,120]
[393630437,1762867632585,500.0,0.00039957,120]
[393630438,1762867632801,447.3913417,0.00039957,120]
[393630439,1762867632922,500.0,0.00039957,120]
[393630440,1762867632962,461.67526834,0.00039957,120]
[393630441,1762867633117,250.0,0.00039957,120]
[393630442,1762867633150,151.0,0.00039957,120]
[393630443,1762867633213,500.0,0.00039957,120]
[393630444,1762867633465,463.94482134,0.00039957,120]
[393630445,1762867633537,500.0,0.00039957,120]
[393630446,1762867633577,478.75725327,0.00039957,120]
[393630447,1762867633715,250.0,0.00039957,120]
[393630448,1762867633753,151.0,0.00039957,120]
[393630449,1762867633788,151.0,0.00039957,120]
[393630450,1762867633890,500.0,0.00039957,120]
[393630451,1762867633926,285.86545746,0.00039957,120]
[393630452,1762867634069,481.11077973,0.00039957,120]
[393630453,1762867634142,500.0,0.00039957,120]
[393630454,1762867634470,250.0,0.00039957,120]
[393630455,1762867634501,496.47127164,0.00039957,120]
[393630456,1762867634532,151.0,0.00039957,120]
[393630457,1762867634567,156.587,0.00039957,120]
[393630458,1762867634597,500.0,0.00039957,120]
[393630459,1762867634791,498.91187858,0.00039957,120]
[393630460,1762867634828,500.0,0.00039957,120]
[393630461,1762867634989,250.0,0.00039957,120]
[393630462,1762867635025,514.84070869,0.00039957,120]
[393630463,1762867635098,500.0,0.00039957,120]
[393630464,1762867635138,162.380719,0.00039957,120]
[393630465,1762867635184,151.0,0.00039957,120]
[393630466,1762867635383,500.0,0.00039957,120]
[393630467,1762867635503,151.0,0.00039957,120]
[393630468,1762867635536,517.37161808,0.00039957,120]
[393630469,1762867635608,250.0,0.00039957,120]
[393630470,1762867635663,533.88981491,0.00039957,120]
[393630471,1762867635749,168.3888056,0.00039957,120]
[393630472,1762867635826,151.0,0.00039957,120]
[393630473,1762867635866,500.0,0.00039957,120]
[393630474,1762867635899,151.0,0.00039957,120]
[393630475,1762867636019,500.0,0.00039957,120]
[393630476,1762867636121,151.0,0.00039957,120]
[393630477,1762867636224,536.51436795,0.00039957,120]
[393630478,1762867636256,250.0,0.00039957,120]
[393630479,1762867636377,174.61919141,0.00039957,120]
[393630480,1762867636468,151.0,0.00039957,120]
[393630481,1762867636508,500.0,0.00039957,120]
[393630482,1762867636631,151.0,0.00039957,120]
[393630483,1762867636956,250.0,0.00039957,120]
[393630484,1762867636990,174.61919141,0.00039957,120]
[393630485,1762867637021,553.64373807,0.00039957,120]
[393630486,1762867637055,556.36539957,0.00039957,120]
[393630487,1762867637101,151.0,0.00039957,120]
[393630488,1762867637258,151.0,0.00039957,120]
[393630489,1762867637564,574.12855637,0.00039957,120]
[393630490,1762867637597,250.0,0.00039957,120]
[393630491,1762867637632,576.95091935,0.00039957,120]
[393630492,1762867637794,151.0,0.00039957,120]
[393630493,1762867637889,151.0,0.00039957,120]
[393630494,1762867637959,151.0,0.00039957,120]
[393630495,1762867638216,250.0,0.00039957,120]
[393630496,1762867638252,576.95091935,0.00039957,120]
[393630497,1762867638478,151.0,0.00039957,120]
[393630498,1762867638567,151.0,0.00039957,120]
[393630499,1762867638825,250.0,0.00039957,120]
[393630500,1762867639143,151.0,0.00039957,120]
[393630501,1762867639192,151.0,0.00039957,120]
[393630502,1762867639257,250.0,0.00039957,120]
[393630503,1762867639606,250.0,0.00039957,120]
[393630504,1762867639762,151.0,0.00039957,120]
[393630505,1762867639907,595.37131296,0.00039957,120]
[393630506,1762867639937,250.0,0.00039957,120]
[393630507,1762867639967,151.0,0.00039957,120]
[393630508,1762867640217,250.0,0.00039957,120]
[393630509,1762867640428,151.0,0.00039957,120]
[393630510,1762867640546,151.0,0.00039957,120]
[393630511,1762867640583,617.40005154,0.00039957,120]
[393630512,1762867640621,250.0,0.00039957,120]
[393630513,1762867640872,250.0,0.00039957,120]
[393630514,1762867641045,151.0,0.00039957,120]
[393630515,1762867641155,151.0,0.00039957,120]
[393630516,1762867641191,250.0,0.00039957,120]
[393630517,1762867641223,640.24385345,0.00039957,120]
[393630518,1762867641255,500.0,0.00039957,120]
[393630519,1762867641499,250.0,0.00039957,120]
[393630520,1762867641760,151.0,0.00039957,120]
[393630521,1762867641791,250.0,0.00039957,120]
[393630522,1762867641843,663.93287602,0.00039957,120]
[393630523,1762867642103,250.0,0.00039957,120]
[393630524,1762867642138,250.0,0.00039957,120]
[393630525,1762867642203,151.0,0.00039957,120]
[393630526,1762867642496,500.0,0.00039957,120]
[393630527,1762867642532,151.0,0.00039957,120]
[393630528,1762867642575,688.49839244,0.00039957,120]
[393630529,1762867642608,250.0,0.00039957,120]
[393630530,1762867642729,250.0,0.00039957,120]
[393630531,1762867642762,250.0,0.00039957,120]
[393630532,1762867642837,156.587,0.00039957,120]
[393630533,1762867642903,220.0,0.00039957,120]
[393630534,1762867642992,500.0,0.00039957,120]
[393630535,1762867643023,151.0,0.00039957,120]
[393630536,1762867643075,500.0,0.00039957,120]
[393630537,1762867643166,250.0,0.00039957,120]
[393630538,1762867643201,713.97283296,0.00039957,120]
[393630539,1762867643342,250.0,0.00039957,120]
[393630540,1762867643429,250.0,0.00039957,120]
[393630541,1762867643466,162.380719,0.00039957,120]
[393630542,1762867643633,220.0,0.00039957,120]
[393630543,1762867643668,500.0,0.00039957,120]
[393630544,1762867643772,250.0,0.00039957,120]
[393630545,1762867643805,740.38982778,0.00039957,120]
[393630546,1762867643843,518.5,0.00039957,120]
[393630547,1762867643938,250.0,0.00039957,120]
[393630548,1762867644022,6888.0,0.00039957,120]
[393630549,1762867644064,168.3888056,0.00039957,120]
[393630550,1762867644150,250.0,0.00039957,120]
[393630551,1762867644298,500.0,0.00039957,120]
[393630552,1762867644335,217.13992439,0.00039957,120]
[393630553,1762867644407,220.0,0.00039957,120]
[393630554,1762867644443,250.0,0.00039957,120]
[393630555,1762867644631,537.6845,0.00039957,120]
[393630556,1762867644671,767.7842514,0.00039957,120]
[393630557,1762867644703,250.0,0.00039957,120]
[393630558,1762867644747,7142.856,0.00039957,120]
[393630559,1762867644777,174.61919141,0.00039957,120]
[393630560,1762867644813,250.0,0.00039957,120]
[393630561,1762867644908,500.0,0.00039957,120]
[393630562,1762867645031,250.0,0.00039957,120]
[393630563,1762867645080,557.5788265,0.00039957,120]
[393630564,1762867645167,796.19226871,0.00039957,120]
[393630565,1762867645396,181.08010149,0.00039957,120]
[393630566,1762867645456,250.0,0.00039957,120]
[393630567,1762867645500,7407.141672,0.00039957,120]
[393630568,1762867645533,500.0,0.00039957,120]
[393630569,1762867645674,250.0,0.00039957,120]
[393630570,1762867645709,557.5788265,0.00039957,120]
[393630571,1762867645775,796.19226871,0.00039957,120]
[393630572,1762867646096,250.0,0.00039957,120]
[393630573,1762867646132,7681.20591386,0.00039957,120]
[393630574,1762867646298,250.0,0.00039957,120]
[393630575,1762867646376,151.0,0.00039957,120]
[393630576,1762867646851,250.0,0.00039957,120]
[393630577,1762867646885,7965.41053268,0.00039957,120]
[393630578,1762867646915,250.0,0.00039957,120]
[393630579,1762867646994,151.0,0.00039957,120]
[393630580,1762867647479,8260.13072239,0.00039957,120]
[393630581,1762867647512,250.0,0.00039957,120]
[393630582,1762867647559,250.0,0.00039957,120]
[393630583,1762867647719,151.0,0.00039957,120]
[393630584,1762867647908,200.0,0.00039957,120]
[393630585,1762867648080,8565.75555911,0.00039957,120]
[393630586,1762867648116,250.0,0.00039957,120]
[393630587,1762867648243,250.0,0.00039957,120]
[393630588,1762867648338,151.0,0.00039957,120]
[393630589,1762867648517,207.4,0.00039957,120]
[393630590,1762867648752,8882.6885148,0.00039957,120]
[393630591,1762867648879,250.0,0.00039957,120]
[393630592,1762867648930,151.0,0.00039957,120]
[393630593,1762867649154,250.0,0.00039957,120]
[393630594,1762867649185,215.0738,0.00039957,120]
[393630595,1762867649388,9211.34798985,0.00039957,120]
[393630596,1762867649531,250.0,0.00039957,120]
[393630597,1762867649565,151.0,0.00039957,120]
[393630598,1762867649596,250.0,0.00039957,120]
[393630599,1762867649754,250.0,0.00039957,120]
[393630600,1762867650003,9552.16786547,0.00039957,120]
[393630601,1762867650165,250.0,0.00039957,120]
[393630602,1762867650202,151.0,0.00039957,120]
[393630603,1762867650235,250.0,0.00039957,120]
[393630604,1762867650489,250.0,0.00039957,120]
[393630605,1762867650612,9905.5980765,0.00039957,120]
[393630606,1762867650819,250.0,0.00039957,120]
[393630607,1762867650849,250.0,0.00039957,120]
[393630608,1762867651154,250.0,0.00039957,120]
[393630609,1762867651488,250.0,0.00039957,120]
[393630610,1762867651760,250.0,0.00039957,120]
[393630611,1762867651842,250.0,0.00039957,120]
[393630613,1762867652416,250.0,0.00039957,120]
[393630614,1762867652524,250.0,0.00039957,120]
[393630615,1762867653035,250.0,0.00039957,120]
[393630616,1762867653185,250.0,0.00039957,120]
[393630617,1762867653725,250.0,0.00039957,120]
[393630618,1762867653819,250.0,0.00039957,120]
[393630619,1762867654355,250.0,0.00039957,120]
[393630620,1762867654532,250.0,0.00039957,120]
[393630621,1762867654772,250.0,0.00039957,120]
[393630622,1762867655042,250.0,0.00039957,120]
[393630623,1762867655161,250.0,0.00039957,120]
[393630624,1762867655341,250.0,0.00039957,120]
[393630625,1762867655853,250.0,0.00039957,120]
[393630626,1762867655889,151.0,0.00039957,120]
[393630627,1762867655974,250.0,0.00039957,120]
[393630628,1762867656488,151.0,0.00039957,120]
[393630629,1762867656520,250.0,0.00039957,120]
[393630630,1762867656613,250.0,0.00039957,120]
[393630631,1762867657123,151.0,0.00039957,120]
[393630632,1762867657184,250.0,0.00039957,120]
[393630633,1762867657262,250.0,0.00039957,120]
[393630634,1762867657764,151.0,0.00039957,120]
[393630635,1762867657925,250.0,0.00039957,120]
[393630636,1762867657968,250.0,0.00039957,120]
[393630637,1762867658399,151.0,0.00039957,120]
[393630638,1762867658636,250.0,0.00039957,120]
[393630639,1762867658761,250.0,0.00039957,120]
[393630640,1762867659032,151.0,0.00039957,120]
[393630641,1762867659281,250.0,0.00039957,120]
[393630642,1762867659435,250.0,0.00039957,120]
[393630643,1762867659641,151.0,0.00039957,120]
[393630644,1762867659896,250.0,0.00039957,120]
[393630645,1762867660046,250.0,0.00039957,120]
[393630646,1762867660304,151.0,0.00039957,120]
[393630647,1762867660578,250.0,0.00039957,120]
[393630648,1762867661028,151.0,0.00039957,120]
[393630649,1762867661068,151.0,0.00039957,120]
[393630650,1762867661211,250.0,0.00039957,120]
[393630651,1762867661496,151.0,0.00039957,120]
[393630652,1762867661774,151.0,0.00039957,120]
[393630653,1762867661822,250.0,0.00039957,120]
[393630654,1762867662121,151.0,0.00039957,120]
[393630655,1762867662413,151.0,0.00039957,120]
[393630656,1762867662464,250.0,0.00039957,120]
[393630657,1762867662730,151.0,0.00039957,120]
[393630658,1762867663074,151.0,0.00039957,120]
[393630659,1762867663520,151.0,0.00039957,120]
[393630660,1762867663715,151.0,0.00039957,120]
[393630661,1762867664186,151.0,0.00039957,120]
[393630662,1762867664964,151.0,0.00039957,120]
[393630663,1762867665465,151.0,0.00039957,120]
[393630664,1762867665794,151.0,0.00039957,120]
[393630665,1762867666080,200.0,0.00039957,30]
[393630666,1762867666118,151.0,0.00039957,120]
[393630667,1762867666419,151.0,0.00039957,120]
[393630668,1762867666810,151.0,0.00039957,120]
[393630669,1762867666847,207.4,0.00039957,30]
[393630670,1762867667059,151.0,0.00039957,120]
[393630671,1762867667481,151.0,0.00039957,120]
[393630672,1762867667512,215.0738,0.00039957,30]
[393630673,1762867668141,223.0315306,0.00039957,30]
[393630674,1762867668190,151.0,0.00039957,120]
[393630675,1762867668849,151.0,0.00039957,120]
[393630676,1762867668884,231.28369723,0.00039957,30]
[393630677,1762867669009,174.48185762,0.00039957,120]
[393630678,1762867669535,239.84119403,0.00039957,30]
[393630679,1762867670149,248.71531821,0.00039957,30]
[393630680,1762867670797,257.91778498,0.00039957,30]
[393630681,1762867671420,267.46074303,0.00039957,30]
[393630682,1762867672074,277.35679052,0.00039957,30]
[393630683,1762867672680,572.81919221,0.00039957,120]
[393630684,1762867673681,287.61899177,0.00039957,30]
[393630685,1762867674407,298.26089446,0.00039957,30]
[393630686,1762867678572,159.76526708,0.00039957,120]
[393630687,1762867680553,151.0,0.00039957,120]
[393630688,1762867681157,151.0,0.00039957,120]
[393630689,1762867681831,151.0,0.00039957,120]
[393630690,1762867682629,151.0,0.00039957,120]
[393630691,1762867683251,151.0,0.00039957,120]
[393630692,1762867683853,151.0,0.00039957,120]
[393630693,1762867685005,151.0,0.00039957,120]
[393630694,1762867685893,151.0,0.00039957,120]
[393630695,1762867686404,151.0,0.00039957,120]
[393630696,1762867687054,151.0,0.00039957,120]
[393630697,1762867687658,151.0,0.00039957,120]
[393630698,1762867688281,151.0,0.00039957,120]
[393630699,1762867688922,151.0,0.00039957,120]
[393630700,1762867689549,151.0,0.00039957,120]
[393630701,1762867690185,151.0,0.00039957,120]
[393630702,1762867690877,151.0,0.00039957,120]
[393630703,1762867691563,151.0,0.00039957,120]
[393630704,1762867692280,151.0,0.00039957,120]
[393630705,1762867692922,151.0,0.00039957,120]
[393630706,1762867693569,151.0,0.00039957,120]
[393630707,1762867701292,173.45349107,0.00039957,120]
[393630708,1762867701648,155.5321441,0.00039957,30]
[393630709,1762867701697,163.58444431,0.00039957,30]
[393630710,1762867704247,674102.97335536,0.00039957,30]
[393630711,1762867707892,245.90909049,0.00039957,120]
[393630712,1762867715761,196.35274324,0.00039957,30]
[393630713,1762867715939,155.47397273,0.00039957,120]
[393630715,1762867727833,206.68340799,0.00039957,30]
[393630716,1762867819957,159.94874886,0.00039958,120]
[393630728,1762867831412,-158.92,0.00016173,2]
[393630729,1762867831422,-250.0,0.00016187,2]
[393630730,1762867831431,-89.0775,0.000162,5]
[393630731,1762867831473,-3538.27222613,0.000162,5]
[393630732,1762867831484,-1372.65476165,0.000162,5]
[393630733,1762867831494,-475.0,0.00016499,2]
[393630734,1762867831503,-1200.0,0.00016499,2]
[393630735,1762867831513,-300.0,0.00016499,2]
[393630736,1762867831522,-15266.95504398,0.000165,2]
[393630737,1762867831531,-356.78145267,0.000166,2]
[393630738,1762867831541,-16495.3,0.0001682,2]
[393630739,1762867831550,-250.0,0.00017,2]
[393630740,1762867831560,-400.0,0.000172,6]
[393630741,1762867831569,-1300.0,0.000172,6]
[393630742,1762867831579,-900.0,0.000173,6]
[393630743,1762867831588,-2600.0,0.000173,6]
[393630744,1762867831598,-550.0,0.00017399,2]
[393630745,1762867831607,-1400.0,0.000174,6]
[393630746,1762867831617,-4000.0,0.000174,6]
[393630747,1762867831626,-222.64847114,0.000175,2]
[393630748,1762867831636,-1900.0,0.000175,6]
[393630749,1762867831645,-5300.0,0.000175,6]
[393630750,1762867831655,-2400.0,0.000176,6]
[393630751,1762867831664,-6700.0,0.000176,6]
[393630752,1762867831674,-400.0,0.000177,6]
[393630753,1762867831684,-1300.0,0.000177,6]
[393630754,1762867831695,-300.0,0.000177,5]
[393630755,1762867831704,-250.0,0.0001779,2]
[393630756,1762867831714,-195.0,0.0001779,2]
[393630757,1762867831723,-250.0,0.0001779,2]
[393630758,1762867831732,-195.0,0.0001779,2]
[393630759,1762867831742,-300.0,0.0001779,2]
[393630760,1762867831751,-300.0,0.0001779,2]
[393630761,1762867831760,-164.9851719,0.0001779,2]
[393630762,1762867831770,-400.0,0.000178,6]
[393630764,1762867831779,-1300.0,0.000178,6]
[393630765,1762867831788,-400.0,0.000179,6]
[393630766,1762867831797,-1300.0,0.000179,6]
[393630767,1762867831806,-161.51582098,0.0001793,2]
[393630768,1762867831816,-10194.55993279,0.0001793,2]
[393630769,1762867831825,-514.86097176,0.0001793,2]
[393630770,1762867831835,-335.4112503,0.0001793,3]
[393630771,1762867831844,-906.77770922,0.0001793,2]
[393630772,1762867831853,-4760.20102936,0.0001793,2]
[393630773,1762867831863,-752.0045425,0.0001793,2]
[393630774,1762867831872,-504.6181,0.00017945,2]
[393630775,1762867831882,-228.0,0.00017953,2]
[393630776,1762867831891,-537.0,0.00017973,2]
[393630777,1762867831900,-433.0,0.00017973,2]
[393630778,1762867831910,-611.11938114,0.00017973,2]
[393630779,1762867831919,-500.0,0.00017973,2]
[393630781,1762867831928,-500.0,0.00017973,2]
[393630783,1762867831937,-500.0,0.00017973,2]
[393630784,1762867831946,-501.10265894,0.00017973,2]
[393630785,1762867831955,-500.0,0.00017973,2]
[393630786,1762867831964,-500.0,0.00017973,2]
[393630787,1762867831973,-502.30771968,0.00017973,2]
[393630788,1762867831981,-500.0,0.00017973,2]
[393630789,1762867831992,-247.85265083,0.00017973,2]
[393630790,1762867832004,-258.58457298,0.00017973,2]
[393630791,1762867832186,-313.53106378,0.00017973,2]
[393630792,1762867832197,-503.16457662,0.00017973,2]
[393630793,1762867832207,-500.0,0.00017973,2]
[393630794,1762867832216,-500.0,0.00017973,2]
[393630795,1762867832226,-593.30755412,0.00017973,2]
[393630796,1762867832235,-500.0,0.00017973,2]
[393630797,1762867832244,-160.6158392,0.00017973,2]
[393630798,1762867832253,-500.0,0.00017973,2]
[393630799,1762867832263,-532.57477256,0.00017973,2]
[393630800,1762867832273,-200.32454822,0.00017973,2]
[393630801,1762867832282,-505.96815581,0.00017973,2]
[393630802,1762867832292,-500.0,0.00017973,2]
[393630803,1762867832302,-503.00814931,0.00017973,2]
[393630804,1762867832311,-500.0,0.00017973,2]
[393630805,1762867832321,-500.0,0.00017973,2]
[393630806,1762867832331,-500.0,0.00017973,2]
[393630807,1762867832340,-500.0,0.00017973,2]
[393630808,1762867832349,-160.0,0.00017976,2]
[393630809,1762867832359,-177.4,0.0001799,3]
[393630810,1762867832368,-1022.01519638,0.0001799,2]
[393630811,1762867832381,-1022.01519638,0.0001799,2]
[393630812,1762867832391,-1022.01519638,0.0001799,2]
[393630813,1762867832401,-151.0,0.00017997,2]
[393630814,1762867832411,-1197.50307316,0.00017999,5]
[393630815,1762867832421,-1008.26056406,0.00017999,5]
[393630816,1762867832430,-300.0,0.00017999,2]